lending/lending_fUSD_20240411
["ID","MTS","AMOUNT","RATE_DAILY","PERIOD"]
[322138459,1712840623552,299.92370311,0.00020325,2]
[322138461,1712840630067,19636.48974114,0.00020325,2]
[322138462,1712840631032,296.25451302,0.00020325,2]
[322138463,1712840633761,8305.88236743,0.00020325,2]
[322138464,1712840634804,240.27611559,0.00020325,2]
[322138466,1712840651039,296.25451302,0.00020325,2]
[322138467,1712840652169,4961.7631795,0.00020325,2]
[322138468,1712840659562,1468.73862598,0.00020325,2]
[322138469,1712840673769,500.0,0.00020115,2]
[322138470,1712840712709,200.0,0.00020166,2]
[322138471,1712840742079,165.1,0.00020372,2]
[322138472,1712840747652,1000.0,0.00020164,2]
[322138473,1712840788399,265.28,0.00020099,2]
[322138474,1712840942814,1640.33,0.00020052,2]
[322138499,1712840952187,500.0,0.00020104,2]
[322138544,1712841032366,-3376.61979186,0.00020519,2]
[322138545,1712841032376,-215.6284547,0.00020519,2]
[322138546,1712841032386,-3752.33171115,0.0002052,2]
[322138547,1712841032395,-653.66214087,0.00020522,2]
[322138548,1712841032404,-165.1,0.00020524,2]
[322138549,1712841032414,-533.29,0.00020675,2]
[322138550,1712841032423,-165.1,0.00020675,2]
[322138551,1712841032433,-221.47647017,0.00020698,2]
[322138552,1712841032443,-4000.0,0.00020788,2]
[322138553,1712841032453,-150.99,0.0002079,2]
[322138554,1712841032462,-371.89364762,0.00020799,2]
[322138555,1712841032472,-1567.54379631,0.000208,2]
[322138556,1712841032481,-3799.09229158,0.000208,2]
[322138557,1712841032491,-23900.0,0.00020802,2]
[322138558,1712841032500,-499.99,0.00020807,2]
[322138559,1712841032510,-165.1,0.00020827,2]
[322138560,1712841032520,-1417.435,0.00020899,2]
[322138561,1712841032529,-549.5779,0.000209,2]
[322138562,1712841032538,-103015.9479,0.000209,2]
[322138563,1712841032547,-2148.3259,0.000209,2]
[322138564,1712841032557,-788.5866,0.000209,2]
[322138565,1712841032566,-1058.7341,0.000209,2]
[322138566,1712841032576,-566.5425,0.000209,2]
[322138567,1712841032586,-507.93,0.000209,2]
[322138568,1712841032595,-1440.5879,0.000209,2]
[322138569,1712841032604,-201.59795258,0.000209,2]
[322138570,1712841032613,-151.83806934,0.000209,2]
[322138571,1712841032622,-4289.54759772,0.000209,2]
[322138572,1712841032632,-192.53200816,0.000209,2]
[322138573,1712841032641,-2134.79691053,0.000209,2]
[322138574,1712841032650,-216.53626396,0.000209,2]
[322138575,1712841032659,-302.41930428,0.000209,2]
[322138576,1712841032668,-1243.49579675,0.000209,2]
[322138577,1712841032678,-6519.23615996,0.00020977,4]
[322138578,1712841032687,-165.1,0.00020979,2]
[322138579,1712841032697,-426.29664907,0.00020988,2]
[322138580,1712841032706,-1471.6153564,0.00020998,2]
[322138581,1712841032715,-1581.73489979,0.00020998,2]
[322138582,1712841032726,-2309.58858575,0.00020998,2]
[322138583,1712841032735,-538.48399409,0.00020998,2]
[322138584,1712841032746,-263.23157217,0.00020998,2]
[322138585,1712841032755,-2377.19539332,0.00020998,2]
[322138586,1712841032765,-483.30142374,0.00020998,2]
[322138587,1712841032774,-1026.7230736,0.00020998,2]
[322138588,1712841032784,-155.0,0.00020998,2]
[322138589,1712841032793,-779.7842727,0.00020998,2]
[322138590,1712841032803,-261.7441955,0.00020998,2]
[322138591,1712841032813,-155.10985756,0.00020998,2]
[322138592,1712841032822,-736.72166263,0.00020998,2]
[322138593,1712841032834,-705.05491754,0.00020998,2]
[322138595,1712841032843,-155.0,0.00020998,2]
[322138597,1712841032853,-486.31177631,0.00020998,2]
[322138599,1712841032863,-443.37852066,0.00020998,2]
[322138601,1712841032873,-167.0153964,0.00020998,2]
[322138603,1712841032883,-525.61497776,0.00020998,2]
[322138605,1712841032892,-407.61661465,0.00020998,2]
[322138606,1712841032903,-155.18437719,0.00020998,2]
[322138607,1712841032914,-2051.21535306,0.00020998,2]
[322138609,1712841032924,-155.0,0.00020998,2]
[322138611,1712841032934,-236.26412359,0.00020998,2]
[322138613,1712841032945,-376.06413625,0.00020998,2]
[322138615,1712841032955,-155.0,0.00020998,2]
[322138617,1712841032965,-155.0,0.00020998,2]
[322138618,1712841032975,-3075.97770024,0.00020998,2]
[322138619,1712841032984,-1864.84962808,0.00020998,2]
[322138620,1712841032994,-662.44398603,0.00020998,2]
[322138621,1712841033004,-1126.23059818,0.00020998,2]
[322138622,1712841033014,-201.9156312,0.00020998,2]
[322138623,1712841033025,-210.17511032,0.00020998,2]
[322138624,1712841033035,-155.0,0.00020998,2]
[322138625,1712841033044,-2210.85563473,0.00020998,2]
[322138626,1712841033054,-251.23310467,0.00020998,2]
[322138627,1712841033065,-1239.26060218,0.00020998,2]
[322138628,1712841033077,-411.90357633,0.00020999,2]
[322138629,1712841033092,-495.83007728,0.00020999,2]
[322138630,1712841033102,-30956.61200542,0.00020999,2]
[322138631,1712841033115,-2832.53235985,0.00020999,2]
[322138632,1712841033124,-514.75773474,0.00020999,2]
[322138633,1712841033134,-444.98588362,0.00020999,2]
[322138634,1712841033143,-310.47026813,0.00020999,2]
[322138635,1712841033152,-436.52665143,0.00020999,2]
[322138636,1712841033162,-1392.07260223,0.00021,2]
[322138637,1712841033174,-5930.3974728,0.00021,2]
[322138638,1712841033186,-17772.99489823,0.00021,2]
[322138639,1712841033197,-20164.8706778,0.00021,2]
[322138640,1712841033208,-870.09013367,0.00021,2]
[322138641,1712841033227,-4966.5633892,0.00021,2]
[322138642,1712841033629,-0.25038424,0.00021,2]
[322138643,1712841033759,-286.21301711,0.000209,2]
[322138662,1712841038229,-38.59221459,0.000209,2]
[322138663,1712841038239,-1205.91351208,0.00021,2]
[322138665,1712841038878,-1086.56026731,0.00021,2]
[322138666,1712841038907,-9367.84916899,0.00021,2]
[322138667,1712841038920,-2584.59419858,0.00021,2]
[322138669,1712841038933,-19816.23322496,0.00021,2]
[322138671,1712841038946,-7847.571751,0.00021,2]
[322138672,1712841038959,-33172.52065456,0.00021,2]
[322138674,1712841038971,-16053.75924497,0.00021,2]
[322138676,1712841038983,-2485.11247109,0.00021,2]
[322138677,1712841038994,-90916.05208188,0.00021,2]
[322138678,1712841039006,-2024.3333892,0.00021,2]
[322138679,1712841039018,-363.25872601,0.00021,2]
[322138682,1712841040347,-247.91503864,0.00020999,2]
[322138683,1712841040357,-196.43496121,0.00021,2]
[322138684,1712841040408,-3190.69585145,0.00021,2]
[322138685,1712841040419,-80521.14568243,0.00021,2]
[322138686,1712841040431,-71084.42266443,0.00021,2]
[322138687,1712841040526,-5949.48807773,0.00021,2]
[322138688,1712841040539,-3602.21195516,0.00021,2]
[322138689,1712841040552,-4128.63986883,0.00021,2]
[322138690,1712841040565,-3933.36463944,0.00021,2]
[322138691,1712841040577,-4432.26839026,0.00021,2]
[322138692,1712841040589,-6757.96750055,0.00021,2]
[322138693,1712841040601,-32793.82785512,0.00021,2]
[322138694,1712841040613,-1617.592005,0.00021,2]
[322138695,1712841040625,-1363.68834929,0.00021,2]
[322138696,1712841040637,-455.64,0.00021,2]
[322138700,1712841043296,-2789.81769287,0.00021,2]
[322138701,1712841043310,-15149.62663419,0.00021,2]
[322138702,1712841043425,-3005.10756317,0.00020898,2]
[322138703,1712841043438,-1971.12243683,0.00020898,2]
[322138704,1712841043448,-698.31561445,0.00021,2]
[322138705,1712841043469,-448.53849637,0.00021,2]
[322138706,1712841043479,-3451.15491963,0.00021,2]
[322138707,1712841043630,-1591.78202215,0.00021,2]
[322138739,1712841046426,-3752.33171115,0.00020999,2]
[322138740,1712841046436,-3386.15456096,0.00020999,2]
[322138741,1712841046445,-7079.58269838,0.00021,2]
[322138742,1712841046457,-23658.65350166,0.00021,2]
[322138743,1712841046469,-4968.74441998,0.00021,2]
[322138744,1712841046489,-312.72986807,0.00021,2]
[322138745,1712841046602,-21887.03485191,0.00021,2]
[322138746,1712841058311,1000.0,0.0002,2]
[322138748,1712841519084,479.96,0.00018801,2]
[322138749,1712841708083,1762.52,0.00020377,2]
[322138750,1712841714222,3159.30444615,0.00019948,2]
[322138751,1712841855165,1000.0,0.00020108,2]
[322138752,1712841897594,265.28,0.00020313,2]
[322138753,1712841980624,500.0,0.0002016,2]
[322138754,1712842014141,455.96,0.00018525,2]
[322138758,1712842084873,2045.7,0.00020334,2]
[322138759,1712842203881,-4468.26350724,0.00020517,2]
[322138760,1712842203904,-150.0,0.00020518,2]
[322138761,1712842212289,164.20368944,0.00020517,2]
[322138762,1712842215610,5457.80835717,0.00020517,2]
[322138776,1712842231972,-14718.4533637,0.00020517,2]
[322138778,1712842231982,-3752.33171115,0.00020517,2]
[322138780,1712842231992,-296.10899353,0.00020517,2]
[322138782,1712842232001,-3076.4815945,0.00020518,2]
[322138784,1712842232010,-785.75739551,0.00020518,2]
[322138786,1712842232019,-3864.24437236,0.00020519,2]
[322138788,1712842232029,-165.1,0.00020569,2]
[322138790,1712842232038,-251.044201,0.00020788,2]
[322138791,1712842232048,-455.96,0.00020789,2]
[322138792,1712842232057,-3514.77,0.00020806,2]
[322138793,1712842232067,-200.0,0.00020831,2]
[322138794,1712842232076,-1000.0,0.00020831,2]
[322138795,1712842232086,-500.0,0.00020831,2]
[322138796,1712842232097,-200.0,0.00020831,2]
[322138797,1712842232107,-200.0,0.00020832,2]
[322138798,1712842232116,-1000.0,0.00020832,2]
[322138799,1712842232126,-226.212927,0.00020832,2]
[322138800,1712842232141,-500.0,0.00020832,2]
[322138801,1712842232150,-200.0,0.00020832,2]
[322138802,1712842232160,-166.69,0.00020832,2]
[322138803,1712842232169,-78.96764132,0.00020844,2]
[322138804,1712842232194,-87.05235868,0.00020844,2]
[322138805,1712842232203,-3095.32426076,0.00020898,2]
[322138833,1712842238919,-346.49127393,0.00020898,2]
[322138834,1712842238932,-3587.08446531,0.00020898,2]
[322138835,1712842238943,-1000.0,0.00020898,2]
[322138836,1712842238953,-500.0,0.00020899,2]
[322138837,1712842238963,-1672.66853469,0.000209,2]
[322138858,1712842242508,-3121.0531817,0.000209,2]
[322138859,1712842242541,-4916.65138361,0.000209,2]
[322138860,1712842242553,-19846.0162,0.000209,2]
[322138861,1712842242563,-152.0656837,0.000209,2]
[322138862,1712842242573,-309.2166,0.000209,2]
[322138863,1712842242586,-840.05095583,0.000209,2]
[322138864,1712842242596,-4132.2844059,0.000209,2]
[322138865,1712842242606,-192.53200816,0.000209,2]
[322138866,1712842242615,-1799.78203793,0.000209,2]
[322138867,1712842242625,-683.35487538,0.000209,2]
[322138868,1712842242634,-1423.19794036,0.000209,2]
[322138869,1712842242644,-216.18741541,0.00020998,2]
[322138870,1712842242654,-620.54602664,0.00020998,2]
[322138871,1712842242663,-173.81923955,0.00020998,2]
[322138872,1712842242673,-253.65732374,0.00020998,2]
[322138873,1712842242683,-155.0,0.00020998,2]
[322138874,1712842242693,-167.52900004,0.00020998,2]
[322138875,1712842242703,-169.58454161,0.00020998,2]
[322138876,1712842242714,-197.24123262,0.00020998,2]
[322138877,1712842242723,-523.58287131,0.00020998,2]
[322138878,1712842242733,-155.11427457,0.00020998,2]
[322138879,1712842242743,-711.00064509,0.00020998,2]
[322138880,1712842242753,-1058.36793939,0.00020998,2]
[322138881,1712842242763,-155.20898453,0.00020998,2]
[322138882,1712842242773,-155.0,0.00020998,2]
[322138883,1712842242782,-266.62753981,0.00020998,2]
[322138884,1712842242792,-266.6127232,0.00020998,2]
[322138885,1712842242819,-415.77320694,0.00020998,2]
[322138886,1712842242829,-448.48061534,0.00020998,2]
[322138887,1712842242839,-537.88379237,0.00020998,2]
[322138888,1712842242850,-408.15974753,0.00020998,2]
[322138889,1712842242861,-5534.18994366,0.00020998,2]
[322138890,1712842242870,-4468.26350724,0.00020998,2]
[322138891,1712842242880,-164.08994542,0.00020998,2]
[322138892,1712842242889,-247.91503863,0.00020999,2]
[322138893,1712842242899,-5205.22277923,0.00020999,2]
[322138894,1712842242909,-211.56606572,0.00020999,2]
[322138895,1712842242919,-474.3252017,0.00020999,2]
[322138896,1712842242929,-517.0,0.00021,2]
[322138897,1712842242939,-480060.23169349,0.00021,2]
[322138898,1712842242949,-219.93852076,0.00021,2]
[322138899,1712842242958,-149637.5388554,0.00021,2]
[322138900,1712842244995,-296.89473455,0.00020998,2]
[322138901,1712842245005,-2692.30214842,0.00021,2]
[322138902,1712842245018,-1021.61636838,0.00021,2]
[322138903,1712842245067,-580.28781454,0.00021,2]
[322138916,1712842245621,-420.67233605,0.00021,2]
[322138917,1712842245670,-5322.87411139,0.00021,2]
[322138918,1712842245685,-5187.82055422,0.00021,2]
[322138919,1712842245704,-31937.90319784,0.00021,2]
[322138920,1712842245769,-534476.14074487,0.00021,2]
[322138921,1712842245865,-439783.69473868,0.00021,2]
[322138930,1712842264229,999.51691893,0.00019948,2]
[322138931,1712842265246,761.63344091,0.0002,2]
[322138933,1712842334925,800.0,0.00020235,2]
[322138934,1712842343987,250.0,0.00020235,2]
[322138935,1712842354406,1100.0,0.000205,2]
[322138937,1712842360703,76634.41898515,0.0002,2]
[322138939,1712842384226,150.5,0.0002099,15]
[322138940,1712842384673,150.5,0.0002098,15]
[322138941,1712842386078,150.5,0.0002097,15]
[322138943,1712842394526,187.76,0.00020077,2]
[322138947,1712842463781,410.36,0.00018021,2]
[322138948,1712842463888,410.36,0.00020285,2]
[322138954,1712842479405,358.68,0.00019922,2]
[322138957,1712842494748,162.4692243,0.00020444,2]
[322138959,1712842503692,150.5,0.0002099,15]
[322138960,1712842503912,179.0,0.0002098,15]
[322138961,1712842505430,150.5,0.0002099,15]
[322138962,1712842506893,150.5,0.0002098,15]
[322138963,1712842507061,150.5,0.0002097,15]
[322138995,1712842623901,150.5,0.0002099,15]
[322138996,1712842624430,179.0,0.0002098,15]
[322138997,1712842629526,150.5,0.0002099,15]
[322138998,1712842630116,150.5,0.0002098,15]
[322138999,1712842630736,254.0,0.0002097,15]
[322139000,1712842716032,165.1,0.00020072,2]
[322139001,1712842759533,152.1,0.00015921,2]
[322139002,1712842773577,2087.9,0.00019901,2]
[322139006,1712842826356,360.0,0.00019899,2]
[322139024,1712842978657,1242.10018582,0.000205,2]
[322139028,1712842983917,525.729419,0.000205,2]
[322139030,1712842991066,263.27683673,0.000205,2]
[322139031,1712842993222,1763.60746529,0.000205,2]
[322139032,1712842994650,187.76,0.00019902,2]
[322139033,1712843005961,779.90932932,0.000205,2]
[322139034,1712843007143,3376.61979186,0.000205,2]
[322139035,1712843008129,785.75739551,0.000205,2]
[322139036,1712843013751,4719.93008194,0.000205,2]
[322139037,1712843017107,3864.24437236,0.000205,2]
[322139038,1712843019027,3076.4815945,0.000205,2]
[322139039,1712843020639,8228.38261827,0.000205,2]
[322139040,1712843021197,396.44,0.00018009,2]
[322139041,1712843021497,396.44,0.00020273,2]
[322139042,1712843025032,236.29611426,0.000205,2]
[322139048,1712843090445,4719.93008194,0.000205,2]
[322139062,1712843196523,278.54949214,0.000205,2]
[322139063,1712843200273,10290.0,0.0002,2]
[322139066,1712843224059,165.1,0.00019994,2]
[322139072,1712843304113,413.07,0.0001982,2]
[322139073,1712843304633,1391.6,0.0001982,2]
[322139074,1712843334092,4574.86707387,0.000205,2]
[322139075,1712843335139,712.0,0.00019816,2]
[322139087,1712843412838,4574.86707387,0.000205,2]
[322139099,1712843432449,-814.3135,0.00020501,2]
[322139100,1712843432517,-1135.00115454,0.00020501,2]
[322139101,1712843432530,-266.0054847,0.00020501,2]
[322139102,1712843432543,-1537.01157191,0.00020501,2]
[322139103,1712843432553,-493.89,0.00020548,2]
[322139104,1712843432564,-150.99,0.00020561,2]
[322139105,1712843432574,-8337.00842809,0.00020561,2]
[322139106,1712843432587,-1146.43237191,0.00020561,2]
[322139107,1712843432597,-1292.42742173,0.00020627,2]
[322139108,1712843432607,-162.4692243,0.00020671,2]
[322139109,1712843432617,-167.0,0.00020683,2]
[322139110,1712843432627,-150.0,0.00020692,2]
[322139111,1712843432637,-1652.47876595,0.000207,2]
[322139112,1712843432647,-399.39,0.00020737,2]
[322139113,1712843432657,-150.0,0.00020739,2]
[322139114,1712843432667,-150.0,0.00020746,2]
[322139115,1712843432678,-150.0,0.00020746,2]
[322139116,1712843432688,-999.99,0.00020746,2]
[322139117,1712843432698,-150.0,0.00020764,2]
[322139118,1712843432708,-499.99,0.00020764,2]
[322139119,1712843432718,-2295.49,0.00020764,2]
[322139120,1712843432728,-3365.42885657,0.00020778,2]
[322139121,1712843432742,-150.0,0.00020781,2]
[322139122,1712843432752,-150.0,0.00020783,2]
[322139123,1712843432762,-668.88826,0.0002079,2]
[322139124,1712843432772,-150.0,0.00020791,2]
[322139125,1712843432783,-150.0,0.00020793,2]
[322139126,1712843432794,-31620.51649958,0.00020799,2]
[322139127,1712843432818,-554.58560878,0.00020799,2]
[322139135,1712843432905,-14021.21067987,0.00020799,2]
[322139138,1712843432918,-1495.96092239,0.00020799,2]
[322139140,1712843432931,-6991.18504614,0.00020799,2]
[322139148,1712843433010,-854.8607206,0.00020799,2]
[322139158,1712843433091,-956.96982121,0.00020799,2]
[322139160,1712843433103,-1626.72135298,0.00020799,2]
[322139162,1712843433114,-562.4996314,0.00020799,2]
[322139164,1712843433127,-3474.31051883,0.00020799,2]
[322139167,1712843433140,-2120.83433,0.00020799,2]
[322139169,1712843433152,-667.19881783,0.00020799,2]
[322139200,1712843437718,-4889.64,0.00020799,2]
[322139201,1712843437935,-932.53179182,0.00020799,2]
[322139202,1712843437949,-2128.72092227,0.00020799,2]
[322139203,1712843437962,-701.19,0.00020799,2]
[322139204,1712843437977,-400.70181325,0.00020799,2]
[322139205,1712843437991,-10006.0994808,0.00020799,2]
[322139206,1712843438004,-15877.80173963,0.00020799,2]
[322139207,1712843438016,-3188.34433904,0.00020799,2]
[322139208,1712843438029,-17603.42519156,0.00020799,2]
[322139209,1712843438042,-1146.6224,0.00020799,2]
[322139266,1712843438698,-1703.41591,0.00020799,2]
[322139269,1712843438712,-542.21,0.00020799,2]
[322139353,1712843439666,-849.03555903,0.00020799,2]
[322139354,1712843439678,-899.20318369,0.00020799,2]
[322139355,1712843439690,-2828.832935,0.00020799,2]
[322139356,1712843439702,-6801.72228369,0.00020799,2]
[322139357,1712843439713,-401.15522127,0.00020799,2]
[322139358,1712843439725,-6973.28529127,0.00020799,2]
[322139359,1712843439745,-1404.8034,0.00020799,2]
[322139360,1712843441934,-150.0,0.00020727,2]
[322139361,1712843441945,-150.0,0.0002073,2]
[322139362,1712843441954,-150.0,0.00020736,2]
[322139363,1712843441965,-150.0,0.00020736,2]
[322139364,1712843441976,-150.0,0.00020772,2]
[322139365,1712843441985,-2518.0669238,0.00020799,2]
[322139366,1712843442001,-87027.92475952,0.00020799,2]
[322139367,1712843442013,-39966.7422,0.000208,2]
[322139368,1712843442022,-1047.7823,0.000208,2]
[322139369,1712843442032,-488.5322,0.000208,2]
[322139370,1712843442041,-3504.43091466,0.000208,2]
[322139371,1712843442050,-2500.0,0.000208,2]
[322139372,1712843442060,-7538.33276131,0.000208,2]
[322139373,1712843442069,-318.8171782,0.000208,2]
[322139374,1712843442079,-150.0,0.00020802,2]
[322139375,1712843442089,-150.0,0.00020803,2]
[322139376,1712843442099,-150.0,0.00020816,2]
[322139377,1712843442108,-668.88826,0.0002082,2]
[322139378,1712843442119,-150.0,0.00020821,2]
[322139379,1712843442130,-150.0,0.00020827,2]
[322139380,1712843442140,-1000.0,0.00020831,2]
[322139381,1712843442150,-500.0,0.00020831,2]
[322139382,1712843442159,-200.0,0.00020832,2]
[322139383,1712843442169,-1000.0,0.00020832,2]
[322139384,1712843442179,-500.0,0.00020832,2]
[322139385,1712843442188,-200.0,0.00020832,2]
[322139386,1712843442197,-150.0,0.00020832,2]
[322139387,1712843442206,-150.0,0.00020833,2]
[322139388,1712843442217,-150.0,0.00020844,2]
[322139389,1712843442227,-150.0,0.00020844,2]
[322139390,1712843442236,-150.0,0.00020848,2]
[322139391,1712843442247,-150.0,0.00020851,2]
[322139392,1712843442257,-150.0,0.00020856,2]
[322139393,1712843442266,-150.0,0.0002086,2]
[322139394,1712843442275,-150.0,0.00020861,2]
[322139395,1712843442284,-150.0,0.00020865,2]
[322139396,1712843442294,-150.0,0.00020866,2]
[322139397,1712843442304,-150.0,0.0002087,2]
[322139398,1712843442314,-150.0,0.00020871,2]
[322139399,1712843442323,-150.0,0.00020875,2]
[322139400,1712843442333,-150.0,0.00020878,2]
[322139401,1712843442343,-150.0,0.00020881,2]
[322139402,1712843442352,-150.0,0.00020883,2]
[322139403,1712843442362,-150.0,0.00020884,2]
[322139404,1712843442371,-150.0,0.00020885,2]
[322139405,1712843442381,-150.0,0.00020887,2]
[322139406,1712843442390,-150.0,0.00020894,2]
[322139407,1712843442399,-150.0,0.00020897,2]
[322139408,1712843442409,-9114.73137845,0.00020897,2]
[322139410,1712843442419,-26011.73974615,0.00020898,2]
[322139412,1712843442430,-8881.2582915,0.00020898,2]
[322139413,1712843442439,-1848.42778418,0.00020898,2]
[322139414,1712843442449,-162.4692243,0.00020898,2]
[322139415,1712843442458,-402.11547371,0.00020898,2]
[322139416,1712843442468,-598.44265156,0.00020898,2]
[322139417,1712843442478,-1760.92105637,0.00020898,2]
[322139418,1712843442488,-299.31102237,0.00020898,2]
[322139420,1712843442499,-781.07934071,0.00020898,2]
[322139421,1712843442509,-785.07242144,0.00020898,2]
[322139422,1712843442519,-3372.39680027,0.00020898,2]
[322139423,1712843442529,-1254.72498407,0.00020898,2]
[322139424,1712843442539,-2984.23988736,0.00020898,2]
[322139425,1712843442549,-182.56040042,0.00020898,2]
[322139426,1712843442559,-4182.34228322,0.00020898,2]
[322139428,1712843442569,-1780.28129922,0.00020898,2]
[322139431,1712843442578,-376.09578016,0.00020898,2]
[322139435,1712843442587,-1863.36731943,0.00020898,2]
[322139438,1712843442597,-1058.17735735,0.00020899,2]
[322139439,1712843442608,-100000.0,0.000209,2]
[322139440,1712843442617,-245000.0,0.000209,2]
[322139441,1712843442626,-500.0,0.000209,2]
[322139442,1712843442636,-174.66297083,0.000209,2]
[322139443,1712843442645,-152.14028027,0.000209,2]
[322139444,1712843442654,-171.02613633,0.000209,2]
[322139445,1712843442664,-334.96553664,0.000209,2]
[322139446,1712843442678,-333.92272336,0.000209,2]
[322139447,1712843442687,-1774.29558728,0.000209,2]
[322139448,1712843442696,-321.47404263,0.000209,2]
[322139449,1712843442706,-4606.27663043,0.000209,2]
[322139450,1712843442716,-192.53200816,0.000209,2]
[322139451,1712843442727,-150.0,0.00020902,2]
[322139452,1712843442736,-150.0,0.0002091,2]
[322139453,1712843442745,-150.0,0.00020915,2]
[322139454,1712843442754,-150.0,0.0002092,2]
[322139455,1712843442763,-150.0,0.00020931,2]
[322139456,1712843442772,-150.0,0.00020938,2]
[322139457,1712843442783,-150.0,0.0002094,2]
[322139458,1712843442793,-150.0,0.00020943,2]
[322139459,1712843442805,-150.0,0.00020949,2]
[322139460,1712843442814,-150.0,0.0002095,2]
[322139461,1712843442824,-150.0,0.00020951,2]
[322139462,1712843442833,-150.0,0.00020953,2]
[322139463,1712843442842,-150.0,0.00020963,2]
[322139464,1712843442852,-150.0,0.00020969,2]
[322139465,1712843442861,-150.0,0.0002097,2]
[322139466,1712843442870,-3957.41688991,0.00020977,4]
[322139467,1712843442880,-668.88826,0.0002098,2]
[322139468,1712843442889,-150.0,0.00020983,2]
[322139469,1712843442899,-150.0,0.00020984,2]
[322139470,1712843442908,-335.29076952,0.00020988,2]
[322139471,1712843442918,-1951.3556363,0.0002099,2]
[322139472,1712843442928,-4524.6277467,0.0002099,2]
[322139473,1712843442937,-1624.8224679,0.0002099,2]
[322139474,1712843442947,-150.0,0.00020991,2]
[322139475,1712843442957,-150.0,0.00020992,2]
[322139476,1712843442969,-150.0,0.00020993,2]
[322139477,1712843442979,-150.0,0.00020995,2]
[322139478,1712843442988,-288.74983001,0.00020996,2]
[322139479,1712843443002,-155.17359915,0.00020997,2]
[322139480,1712843443011,-11078.03511603,0.00020998,2]
[322139481,1712843443043,-686.28268305,0.00020998,2]
[322139482,1712843443054,-2837.04939366,0.00020998,2]
[322139483,1712843443066,-55649.78129614,0.00020998,2]
[322139484,1712843443075,-425.45923219,0.00020998,2]
[322139485,1712843443084,-258.58083684,0.00020998,2]
[322139486,1712843443094,-155.65639888,0.00020998,2]
[322139487,1712843443104,-656.90000005,0.00020998,2]
[322139488,1712843443113,-186.4346411,0.00020998,2]
[322139489,1712843443124,-642.162626,0.00020998,2]
[322139490,1712843443134,-3764.46401142,0.00020998,2]
[322139491,1712843443143,-157.03819972,0.00020998,2]
[322139492,1712843443153,-266.79799477,0.00020998,2]
[322139493,1712843443163,-404.73102028,0.00020998,2]
[322139494,1712843443173,-155.0,0.00020998,2]
[322139495,1712843443183,-304.59353416,0.00020998,2]
[322139497,1712843443193,-201.84235747,0.00020998,2]
[322139499,1712843443202,-1499.11592513,0.00020998,2]
[322139501,1712843443212,-236.22335638,0.00020998,2]
[322139502,1712843443222,-336.97793645,0.00020998,2]
[322139505,1712843443231,-157.923262,0.00020998,2]
[322139506,1712843443241,-252.41374178,0.00020998,2]
[322139508,1712843443254,-522.61051433,0.00020998,2]
[322139510,1712843443263,-1765.48268369,0.00020998,2]
[322139512,1712843443273,-486.13738985,0.00020998,2]
[322139514,1712843443282,-1691.715025,0.00020998,2]
[322139516,1712843443292,-155.0,0.00020998,2]
[322139518,1712843443301,-1254.03701596,0.00020998,2]
[322139520,1712843443310,-1946.38168202,0.00020998,2]
[322139522,1712843443319,-2202.3085269,0.00020998,2]
[322139524,1712843443329,-704.78917334,0.00020998,2]
[322139525,1712843443338,-1296.33667789,0.00020998,2]
[322139526,1712843443348,-192.36220435,0.00020998,2]
[322139527,1712843443358,-857.85739397,0.00020998,2]
[322139528,1712843443367,-1969.2080462,0.00020998,2]
[322139529,1712843443376,-156.86781871,0.00020998,2]
[322139530,1712843443385,-150.0,0.00020998,2]
[322139531,1712843443394,-8471.40363014,0.00020999,2]
[322139532,1712843443407,-12704.63636986,0.00020999,2]
[322139533,1712843443416,-18944.56744727,0.00020999,2]
[322139534,1712843443426,-178.35814173,0.00020999,2]